[Event "Titled Tuesday Blitz October 31 Late 2023"]
[White "Yeritsyan, Hayk"]
[Black "Pinto, Daniel"]
[WhiteFideId "13307320"]
[BlackFideId "3303144"]
[WhiteElo "2437"]
[BlackElo "2418"]
[Result "1-0"]
[Round "7"]
[TimeControl "180+1"]
[Date "2023.10.31"]
[WhiteClock "0:00:17"]
[BlackClock "0:00:00"]
[Board "91"]

1. d4 {[%clk 0:03:00]}  Nf6 {[%clk 0:02:58]} 2. Nf3 {[%clk 0:03:01]}  c5 {[%clk 0:02:56]} 3. e3 {[%clk 0:03:01]}  g6 {[%clk 0:02:55]} 4. Bd3 {[%clk 0:03:01]}  Bg7 {[%clk 0:02:56]} 5. c3 {[%clk 0:03:02]}  O-O {[%clk 0:02:56]} 6. Nbd2 {[%clk 0:03:02]}  d6 {[%clk 0:02:55]} 7. O-O {[%clk 0:03:03]}  Nc6 {[%clk 0:02:55]} 8. Qe2 {[%clk 0:03:04]}  e5 {[%clk 0:02:55]} 9. dxe5 {[%clk 0:03:04]}  dxe5 {[%clk 0:02:53]} 10. e4 {[%clk 0:03:04]}  Nh5 {[%clk 0:02:46]} 11. g3 {[%clk 0:02:53]}  Bh3 {[%clk 0:02:42]} 12. Rd1 {[%clk 0:02:52]}  Qe7 {[%clk 0:02:36]} 13. Nf1 {[%clk 0:02:46]}  Rad8 {[%clk 0:02:19]} 14. Ne3 {[%clk 0:02:42]}  Be6 {[%clk 0:02:16]} 15. Bc4 {[%clk 0:02:21]}  Rxd1+ {[%clk 0:02:11]} 16. Nxd1 {[%clk 0:02:20]}  Nf6 {[%clk 0:00:49]} 17. Bg5 {[%clk 0:02:13]}  h6 {[%clk 0:00:46]} 18. Bxf6 {[%clk 0:02:13]}  Qxf6 {[%clk 0:00:43]} 19. Ne1 {[%clk 0:02:06]}  Na5 {[%clk 0:00:36]} 20. Bxe6 {[%clk 0:02:05]}  Qxe6 {[%clk 0:00:36]} 21. Ne3 {[%clk 0:02:04]}  f5 {[%clk 0:00:37]} 22. f3 {[%clk 0:01:49]}  fxe4 {[%clk 0:00:21]} 23. fxe4 {[%clk 0:01:50]}  c4 {[%clk 0:00:15]} 24. Nd5 {[%clk 0:01:45]}  Rf7 {[%clk 0:00:16]} 25. Nc2 {[%clk 0:01:43]}  Bf8 {[%clk 0:00:16]} 26. Rf1 {[%clk 0:01:40]}  Bc5+ {[%clk 0:00:16]} 27. Kg2 {[%clk 0:01:39]}  b6 {[%clk 0:00:14]} 28. Rxf7 {[%clk 0:01:31]}  Qxf7 {[%clk 0:00:14]} 29. Qf3 {[%clk 0:01:31]}  Qxf3+ {[%clk 0:00:10]} 30. Kxf3 {[%clk 0:01:32]}  Nb7 {[%clk 0:00:11]} 31. Nc7 {[%clk 0:01:24]}  Kf7 {[%clk 0:00:11]} 32. Nd5 {[%clk 0:01:20]}  Nd6 {[%clk 0:00:11]} 33. Ne1 {[%clk 0:01:15]}  h5 {[%clk 0:00:09]} 34. h4 {[%clk 0:01:15]}  Ne8 {[%clk 0:00:08]} 35. Nc2 {[%clk 0:01:11]}  Ke6 {[%clk 0:00:09]} 36. b4 {[%clk 0:01:08]}  cxb3 {[%clk 0:00:08]} 37. axb3 {[%clk 0:01:08]}  a5 {[%clk 0:00:09]} 38. b4 {[%clk 0:01:08]}  axb4 {[%clk 0:00:09]} 39. cxb4 {[%clk 0:01:08]}  Bg1 {[%clk 0:00:09]} 40. b5 {[%clk 0:01:07]}  Nf6 {[%clk 0:00:09]} 41. Nxf6 {[%clk 0:01:07]}  Kxf6 {[%clk 0:00:09]} 42. Nb4 {[%clk 0:01:06]}  Bc5 {[%clk 0:00:09]} 43. Nd5+ {[%clk 0:01:06]}  Ke6 {[%clk 0:00:10]} 44. g4 {[%clk 0:01:05]}  Bd4 {[%clk 0:00:09]} 45. Nc7+ {[%clk 0:01:01]}  Kd7 {[%clk 0:00:09]} 46. Nd5 {[%clk 0:01:00]}  Ke6 {[%clk 0:00:10]} 47. Kg3 {[%clk 0:00:58]}  Bc5 {[%clk 0:00:09]} 48. Kh3 {[%clk 0:00:57]}  Bd4 {[%clk 0:00:09]} 49. Nb4 {[%clk 0:00:55]}  Bc5 {[%clk 0:00:09]} 50. Nd3 {[%clk 0:00:55]}  Bd4 {[%clk 0:00:09]} 51. Ne1 {[%clk 0:00:54]}  Kd6 {[%clk 0:00:08]} 52. gxh5 {[%clk 0:00:49]}  gxh5 {[%clk 0:00:07]} 53. Nd3 {[%clk 0:00:49]}  Ke6 {[%clk 0:00:07]} 54. Kg2 {[%clk 0:00:49]}  Be3 {[%clk 0:00:07]} 55. Kf3 {[%clk 0:00:48]}  Bd4 {[%clk 0:00:08]} 56. Ke2 {[%clk 0:00:48]}  Kf6 {[%clk 0:00:07]} 57. Kd2 {[%clk 0:00:47]}  Ke6 {[%clk 0:00:08]} 58. Kc2 {[%clk 0:00:47]}  Kd6 {[%clk 0:00:08]} 59. Kb3 {[%clk 0:00:46]}  Be3 {[%clk 0:00:08]} 60. Kc4 {[%clk 0:00:45]}  Ke6 {[%clk 0:00:07]} 61. Ne1 {[%clk 0:00:35]}  Bf2 {[%clk 0:00:06]} 62. Nf3 {[%clk 0:00:35]}  Kd6 {[%clk 0:00:07]} 63. Kb4 {[%clk 0:00:34]}  Bc5+ {[%clk 0:00:06]} 64. Kc4 {[%clk 0:00:34]}  Bf2 {[%clk 0:00:07]} 65. Kd3 {[%clk 0:00:33]}  Ke6 {[%clk 0:00:06]} 66. Ke2 {[%clk 0:00:32]}  Bc5 {[%clk 0:00:06]} 67. Nh2 {[%clk 0:00:30]}  Kf6 {[%clk 0:00:06]} 68. Nf1 {[%clk 0:00:29]}  Ke6 {[%clk 0:00:06]} 69. Ng3 {[%clk 0:00:29]}  Kf6 {[%clk 0:00:07]} 70. Nxh5+ {[%clk 0:00:28]}  Kg6 {[%clk 0:00:07]} 71. Ng3 {[%clk 0:00:28]}  Bd4 {[%clk 0:00:07]} 72. Kf3 {[%clk 0:00:29]}  Bc5 {[%clk 0:00:08]} 73. Kg4 {[%clk 0:00:29]}  Bf2 {[%clk 0:00:08]} 74. h5+ {[%clk 0:00:29]}  Kf6 {[%clk 0:00:08]} 75. Nf5 {[%clk 0:00:25]}  Bc5 {[%clk 0:00:08]} 76. Nh4 {[%clk 0:00:22]}  Bf2 {[%clk 0:00:07]} 77. h6 {[%clk 0:00:22]}  Bd4 {[%clk 0:00:05]} 78. Kh5 {[%clk 0:00:16]}  Bc3 {[%clk 0:00:00]} 79. Nf5 {[%clk 0:00:17]} 1-0


[Site "https://www.chess.com"]

[Event "Titled Tuesday Blitz October 31 Late 2023"]
[White "Modric, Nesa"]
[Black "Howell, David W L"]
[WhiteFideId "922579"]
[BlackFideId "410608"]
[WhiteElo "2241"]
[BlackElo "2974"]
[Result "0-1"]
[Round "7"]
[TimeControl "180+1"]
[Date "2023.10.31"]
[WhiteClock "0:00:00"]
[BlackClock "0:00:07"]
[Board "95"]

1. e4 {[%clk 0:03:00]}  c5 {[%clk 0:02:57]} 2. c3 {[%clk 0:02:59]}  Nf6 {[%clk 0:02:50]} 3. e5 {[%clk 0:02:58]}  Nd5 {[%clk 0:02:50]} 4. Nf3 {[%clk 0:02:57]}  d6 {[%clk 0:02:50]} 5. d4 {[%clk 0:02:57]}  cxd4 {[%clk 0:02:44]} 6. exd6 {[%clk 0:02:57]}  e6 {[%clk 0:02:39]} 7. Nxd4 {[%clk 0:02:57]}  Bxd6 {[%clk 0:02:39]} 8. g3 {[%clk 0:02:58]}  O-O {[%clk 0:02:34]} 9. Bg2 {[%clk 0:02:58]}  Nc6 {[%clk 0:02:29]} 10. O-O {[%clk 0:02:58]}  Bd7 {[%clk 0:02:16]} 11. c4 {[%clk 0:02:40]}  Nb6 {[%clk 0:01:37]} 12. Nxc6 {[%clk 0:02:06]}  Bxc6 {[%clk 0:01:38]} 13. Bxc6 {[%clk 0:02:06]}  bxc6 {[%clk 0:01:39]} 14. Qe2 {[%clk 0:01:57]}  Qc7 {[%clk 0:01:27]} 15. b3 {[%clk 0:01:48]}  a5 {[%clk 0:01:20]} 16. a3 {[%clk 0:01:27]}  Nd7 {[%clk 0:01:11]} 17. Bb2 {[%clk 0:01:16]}  Rfb8 {[%clk 0:01:09]} 18. Nd2 {[%clk 0:01:12]}  Be5 {[%clk 0:01:01]} 19. Bxe5 {[%clk 0:01:07]}  Qxe5 {[%clk 0:01:02]} 20. Qf3 {[%clk 0:00:47]}  Ra6 {[%clk 0:00:41]} 21. Ne4 {[%clk 0:00:38]}  Rab6 {[%clk 0:00:37]} 22. Rab1 {[%clk 0:00:34]}  h6 {[%clk 0:00:28]} 23. Rfd1 {[%clk 0:00:34]}  Nc5 {[%clk 0:00:18]} 24. Nd6 {[%clk 0:00:30]}  Qf6 {[%clk 0:00:15]} 25. Qxf6 {[%clk 0:00:16]}  gxf6 {[%clk 0:00:16]} 26. b4 {[%clk 0:00:09]}  axb4 {[%clk 0:00:17]} 27. axb4 {[%clk 0:00:09]}  Rxb4 {[%clk 0:00:18]} 28. Rxb4 {[%clk 0:00:09]}  Rxb4 {[%clk 0:00:19]} 29. Ra1 {[%clk 0:00:09]}  Nb7 {[%clk 0:00:08]} 30. Ne4 {[%clk 0:00:06]}  f5 {[%clk 0:00:07]} 31. Nf6+ {[%clk 0:00:05]}  Kg7 {[%clk 0:00:07]} 32. Nh5+ {[%clk 0:00:05]}  Kg6 {[%clk 0:00:07]} 33. Nf4+ {[%clk 0:00:05]}  Kf6 {[%clk 0:00:08]} 34. Ra7 {[%clk 0:00:05]}  Nd6 {[%clk 0:00:06]} 35. c5 {[%clk 0:00:06]}  Ne4 {[%clk 0:00:07]} 36. Nh5+ {[%clk 0:00:04]}  Kg6 {[%clk 0:00:07]} 37. Nf4+ {[%clk 0:00:04]}  Kf6 {[%clk 0:00:08]} 38. Nh5+ {[%clk 0:00:04]}  Ke5 {[%clk 0:00:08]} 39. Rxf7 {[%clk 0:00:03]}  Rb1+ {[%clk 0:00:08]} 40. Kg2 {[%clk 0:00:03]}  Rb2 {[%clk 0:00:09]} 41. Nf4 {[%clk 0:00:01]}  Nxf2 {[%clk 0:00:09]} 42. Kf3 {[%clk 0:00:01]}  Rc2 {[%clk 0:00:06]} 43. Re7 {[%clk 0:00:01]}  Ne4 {[%clk 0:00:06]} 44. Rxe6+ {[%clk 0:00:00]}  Kd4 {[%clk 0:00:07]} 0-1


[Site "https://www.chess.com"]

[Event "Titled Tuesday Blitz October 31 Late 2023"]
[White "Ardelean, George-Catalin"]
[Black "nicholas_ilic"]
[WhiteFideId "1207091"]
[WhiteElo "2722"]
[BlackElo "2388"]
[Result "1-0"]
[Round "7"]
[TimeControl "180+1"]
[Date "2023.10.31"]
[WhiteClock "0:00:39"]
[BlackClock "0:00:00"]
[Board "97"]

1. d4 {[%clk 0:03:00]}  Nf6 {[%clk 0:02:56]} 2. Bf4 {[%clk 0:02:59]}  g6 {[%clk 0:02:54]} 3. Nc3 {[%clk 0:02:57]}  Bg7 {[%clk 0:02:53]} 4. e4 {[%clk 0:02:57]}  O-O {[%clk 0:02:52]} 5. e5 {[%clk 0:02:51]}  Ne8 {[%clk 0:02:52]} 6. h4 {[%clk 0:02:50]}  d5 {[%clk 0:02:51]} 7. h5 {[%clk 0:02:48]}  c5 {[%clk 0:02:37]} 8. dxc5 {[%clk 0:02:15]}  Nc7 {[%clk 0:02:26]} 9. Qd2 {[%clk 0:02:07]}  Nc6 {[%clk 0:02:17]} 10. Bh6 {[%clk 0:02:02]}  Nxe5 {[%clk 0:00:45]} 11. hxg6 {[%clk 0:01:56]}  fxg6 {[%clk 0:00:44]} 12. Bxg7 {[%clk 0:01:55]}  Kxg7 {[%clk 0:00:44]} 13. Qh6+ {[%clk 0:01:43]}  Kf7 {[%clk 0:00:36]} 14. f4 {[%clk 0:01:41]}  Ng4 {[%clk 0:00:12]} 15. Qxh7+ {[%clk 0:01:40]}  Kf6 {[%clk 0:00:12]} 16. Nf3 {[%clk 0:01:28]}  Bf5 {[%clk 0:00:09]} 17. Qh4+ {[%clk 0:01:16]}  Kg7 {[%clk 0:00:07]} 18. Nd4 {[%clk 0:01:01]}  Rh8 {[%clk 0:00:06]} 19. Nxf5+ {[%clk 0:01:01]}  gxf5 {[%clk 0:00:05]} 20. Qg5+ {[%clk 0:01:01]}  Kf7 {[%clk 0:00:05]} 21. Qxf5+ {[%clk 0:00:57]}  Nf6 {[%clk 0:00:05]} 22. Rxh8 {[%clk 0:00:56]}  Qxh8 {[%clk 0:00:06]} 23. O-O-O {[%clk 0:00:55]}  e6 {[%clk 0:00:07]} 24. Qe5 {[%clk 0:00:54]}  Rc8 {[%clk 0:00:05]} 25. Be2 {[%clk 0:00:44]}  Qg7 {[%clk 0:00:04]} 26. g4 {[%clk 0:00:43]}  Nxg4 {[%clk 0:00:03]} 27. Qxg7+ {[%clk 0:00:42]}  Kxg7 {[%clk 0:00:03]} 28. Bxg4 {[%clk 0:00:42]}  Kf6 {[%clk 0:00:00]} 29. Nxd5+ {[%clk 0:00:39]} 1-0


[Site "https://www.chess.com"]

[Event "Titled Tuesday Blitz October 31 Late 2023"]
[White "Tworuszka, Michal"]
[Black "Skaric, Djuro"]
[WhiteFideId "1117858"]
[BlackFideId "934569"]
[WhiteElo "2450"]
[BlackElo "2309"]
[Result "1-0"]
[Round "7"]
[TimeControl "180+1"]
[Date "2023.10.31"]
[WhiteClock "0:00:15"]
[BlackClock "0:01:35"]
[Board "104"]

1. e4 {[%clk 0:03:00]}  d6 {[%clk 0:02:57]} 2. d4 {[%clk 0:03:00]}  g6 {[%clk 0:02:57]} 3. f3 {[%clk 0:02:58]}  Bg7 {[%clk 0:02:57]} 4. c4 {[%clk 0:02:58]}  Nf6 {[%clk 0:02:57]} 5. Nc3 {[%clk 0:02:58]}  O-O {[%clk 0:02:58]} 6. Bg5 {[%clk 0:02:58]}  h6 {[%clk 0:02:57]} 7. Be3 {[%clk 0:02:58]}  Nc6 {[%clk 0:02:57]} 8. Nge2 {[%clk 0:02:57]}  e5 {[%clk 0:02:56]} 9. d5 {[%clk 0:02:57]}  Ne7 {[%clk 0:02:53]} 10. Qd2 {[%clk 0:02:57]}  Kh7 {[%clk 0:02:53]} 11. O-O-O {[%clk 0:02:54]}  Nfg8 {[%clk 0:02:48]} 12. g4 {[%clk 0:02:54]}  a6 {[%clk 0:02:47]} 13. Ng3 {[%clk 0:02:47]}  b6 {[%clk 0:02:47]} 14. Bd3 {[%clk 0:02:43]}  Bd7 {[%clk 0:02:47]} 15. h4 {[%clk 0:02:40]}  Kh8 {[%clk 0:02:47]} 16. Qe2 {[%clk 0:02:30]}  Rb8 {[%clk 0:02:46]} 17. g5 {[%clk 0:02:21]}  h5 {[%clk 0:02:44]} 18. f4 {[%clk 0:02:21]}  exf4 {[%clk 0:02:44]} 19. Bxf4 {[%clk 0:02:22]}  Bg4 {[%clk 0:02:37]} 20. Qd2 {[%clk 0:02:15]}  f5 {[%clk 0:02:33]} 21. Rdf1 {[%clk 0:02:02]}  fxe4 {[%clk 0:02:31]} 22. Ngxe4 {[%clk 0:02:00]}  Nf5 {[%clk 0:02:30]} 23. Be2 {[%clk 0:01:53]}  Bxe2 {[%clk 0:02:29]} 24. Qxe2 {[%clk 0:01:54]}  Qe7 {[%clk 0:02:29]} 25. Ng3 {[%clk 0:01:49]}  Rbe8 {[%clk 0:02:28]} 26. Qxe7 {[%clk 0:01:28]}  Rxe7 {[%clk 0:02:27]} 27. Nxf5 {[%clk 0:01:25]}  Rxf5 {[%clk 0:02:27]} 28. Bd2 {[%clk 0:01:25]}  Ref7 {[%clk 0:02:26]} 29. Re1 {[%clk 0:01:24]}  Be5 {[%clk 0:02:21]} 30. Kd1 {[%clk 0:01:15]}  Rf2 {[%clk 0:02:20]} 31. Ne4 {[%clk 0:01:10]}  Rg2 {[%clk 0:02:19]} 32. Reg1 {[%clk 0:00:57]}  Rxg1+ {[%clk 0:02:15]} 33. Rxg1 {[%clk 0:00:58]}  Bxb2 {[%clk 0:02:14]} 34. Nc3 {[%clk 0:00:36]}  Rf3 {[%clk 0:02:04]} 35. Kc2 {[%clk 0:00:35]}  Ba3 {[%clk 0:01:56]} 36. Re1 {[%clk 0:00:30]}  Bc5 {[%clk 0:01:51]} 37. Re8 {[%clk 0:00:26]}  Kg7 {[%clk 0:01:51]} 38. Rc8 {[%clk 0:00:20]}  Rf7 {[%clk 0:01:50]} 39. Kd3 {[%clk 0:00:16]}  Bf2 {[%clk 0:01:45]} 40. Ne4 {[%clk 0:00:16]}  Bxh4 {[%clk 0:01:44]} 41. Bc3+ {[%clk 0:00:16]}  Nf6 {[%clk 0:01:38]} 42. Bxf6+ {[%clk 0:00:14]}  Rxf6 {[%clk 0:01:38]} 43. gxf6+ {[%clk 0:00:14]}  Bxf6 {[%clk 0:01:38]} 44. Nxf6 {[%clk 0:00:14]}  Kxf6 {[%clk 0:01:35]} 45. Rxc7 {[%clk 0:00:15]} 1-0


[Site "https://www.chess.com"]

[Event "Titled Tuesday Blitz October 31 Late 2023"]
[White "Schut, Han"]
[Black "Gabdushev, Ruslan"]
[WhiteFideId "1005561"]
[BlackFideId "4137833"]
[WhiteElo "2300"]
[BlackElo "2414"]
[Result "0-1"]
[Round "7"]
[TimeControl "180+1"]
[Date "2023.10.31"]
[WhiteClock "0:00:00"]
[BlackClock "0:00:42"]
[Board "107"]

1. e4 {[%clk 0:02:56]}  Nc6 {[%clk 0:02:57]} 2. Nf3 {[%clk 0:02:55]}  d6 {[%clk 0:02:55]} 3. d4 {[%clk 0:02:54]}  Bg4 {[%clk 0:02:54]} 4. d5 {[%clk 0:02:53]}  Nb8 {[%clk 0:02:53]} 5. c4 {[%clk 0:02:52]}  Nf6 {[%clk 0:02:51]} 6. Nc3 {[%clk 0:02:52]}  c6 {[%clk 0:02:50]} 7. Be2 {[%clk 0:02:46]}  Bxf3 {[%clk 0:02:49]} 8. Bxf3 {[%clk 0:02:45]}  Nbd7 {[%clk 0:02:49]} 9. O-O {[%clk 0:02:41]}  g6 {[%clk 0:02:48]} 10. Bf4 {[%clk 0:02:13]}  Bg7 {[%clk 0:02:46]} 11. Qd2 {[%clk 0:02:13]}  O-O {[%clk 0:02:45]} 12. Bh6 {[%clk 0:02:11]}  Bxh6 {[%clk 0:02:42]} 13. Qxh6 {[%clk 0:02:11]}  Qb6 {[%clk 0:02:42]} 14. Qd2 {[%clk 0:01:57]}  Qb4 {[%clk 0:02:30]} 15. b3 {[%clk 0:01:48]}  Nc5 {[%clk 0:02:21]} 16. Rad1 {[%clk 0:01:32]}  Nfd7 {[%clk 0:02:14]} 17. dxc6 {[%clk 0:01:28]}  bxc6 {[%clk 0:02:13]} 18. Nd5 {[%clk 0:01:24]}  Qb7 {[%clk 0:02:01]} 19. Nxe7+ {[%clk 0:01:23]}  Kg7 {[%clk 0:02:00]} 20. Qxd6 {[%clk 0:01:23]}  Rae8 {[%clk 0:01:56]} 21. Nxc6 {[%clk 0:01:16]}  Re6 {[%clk 0:01:49]} 22. Qd4+ {[%clk 0:01:08]}  Kg8 {[%clk 0:01:43]} 23. Na5 {[%clk 0:00:45]}  Qb6 {[%clk 0:01:33]} 24. Bg4 {[%clk 0:00:45]}  Rxe4 {[%clk 0:01:31]} 25. Qd6 {[%clk 0:00:24]}  Rxg4 {[%clk 0:01:29]} 26. Nc6 {[%clk 0:00:17]}  Re4 {[%clk 0:01:12]} 27. b4 {[%clk 0:00:15]}  Rxc4 {[%clk 0:00:44]} 28. bxc5 {[%clk 0:00:13]}  Nxc5 {[%clk 0:00:44]} 29. Ne7+ {[%clk 0:00:00]}  Kg7 {[%clk 0:00:42]} 0-1


[Site "https://www.chess.com"]

[Event "Titled Tuesday Blitz October 31 Late 2023"]
[White "Hoffmann, Asa"]
[Black "Quirke, Jeffrey"]
[WhiteFideId "2001470"]
[BlackFideId "2013029"]
[WhiteElo "2405"]
[BlackElo "2235"]
[Result "1-0"]
[Round "7"]
[TimeControl "180+1"]
[Date "2023.10.31"]
[WhiteClock "0:01:15"]
[BlackClock "0:00:00"]
[Board "110"]

1. d4 {[%clk 0:02:57]}  Nf6 {[%clk 0:02:59]} 2. Bg5 {[%clk 0:02:56]}  d5 {[%clk 0:02:57]} 3. Nd2 {[%clk 0:02:55]}  Bf5 {[%clk 0:02:54]} 4. f3 {[%clk 0:02:54]}  Nbd7 {[%clk 0:02:50]} 5. c4 {[%clk 0:02:53]}  c6 {[%clk 0:02:49]} 6. Qb3 {[%clk 0:02:52]}  Qb6 {[%clk 0:02:47]} 7. c5 {[%clk 0:02:51]}  Qc7 {[%clk 0:02:37]} 8. e3 {[%clk 0:02:50]}  e6 {[%clk 0:02:36]} 9. Bd3 {[%clk 0:02:47]}  Bxd3 {[%clk 0:02:30]} 10. Qxd3 {[%clk 0:02:47]}  Be7 {[%clk 0:02:29]} 11. Ne2 {[%clk 0:02:46]}  e5 {[%clk 0:02:22]} 12. O-O {[%clk 0:02:43]}  O-O {[%clk 0:02:22]} 13. Nc3 {[%clk 0:02:39]}  Rfe8 {[%clk 0:02:16]} 14. Rae1 {[%clk 0:02:36]}  Bf8 {[%clk 0:02:12]} 15. Bh4 {[%clk 0:02:35]}  g6 {[%clk 0:01:31]} 16. Bg3 {[%clk 0:02:34]}  Nh5 {[%clk 0:01:31]} 17. Bf2 {[%clk 0:02:30]}  Bg7 {[%clk 0:01:29]} 18. b4 {[%clk 0:02:30]}  exd4 {[%clk 0:01:26]} 19. exd4 {[%clk 0:02:29]}  Nf4 {[%clk 0:01:22]} 20. Qc2 {[%clk 0:02:26]}  Nf6 {[%clk 0:01:17]} 21. b5 {[%clk 0:02:23]}  N6h5 {[%clk 0:01:08]} 22. a4 {[%clk 0:02:18]}  Qd7 {[%clk 0:01:05]} 23. Nb3 {[%clk 0:01:51]}  Qf5 {[%clk 0:00:53]} 24. Qxf5 {[%clk 0:01:48]}  gxf5 {[%clk 0:00:54]} 25. g3 {[%clk 0:01:36]}  Nd3 {[%clk 0:00:53]} 26. Rd1 {[%clk 0:01:35]}  Nxf2 {[%clk 0:00:50]} 27. Kxf2 {[%clk 0:01:35]}  f4 {[%clk 0:00:47]} 28. g4 {[%clk 0:01:30]}  Nf6 {[%clk 0:00:48]} 29. Rfe1 {[%clk 0:01:30]}  h5 {[%clk 0:00:38]} 30. h3 {[%clk 0:01:29]}  Nd7 {[%clk 0:00:33]} 31. Na5 {[%clk 0:01:26]}  Rxe1 {[%clk 0:00:30]} 32. Kxe1 {[%clk 0:01:26]}  Re8+ {[%clk 0:00:27]} 33. Kf2 {[%clk 0:01:26]}  Re3 {[%clk 0:00:25]} 34. bxc6 {[%clk 0:01:19]}  bxc6 {[%clk 0:00:23]} 35. Ne2 {[%clk 0:01:19]}  hxg4 {[%clk 0:00:17]} 36. hxg4 {[%clk 0:01:19]}  Ra3 {[%clk 0:00:03]} 37. Nxc6 {[%clk 0:01:15]}  Rxa4 {[%clk 0:00:00]} 38. Nxf4 {[%clk 0:01:15]} 1-0


[Site "https://www.chess.com"]

[Event "Titled Tuesday Blitz October 31 Late 2023"]
[White "Djordjevic, Dejan N"]
[Black "Friedland, Moshe"]
[WhiteFideId "913316"]
[BlackFideId "2812843"]
[WhiteElo "2043"]
[BlackElo "2403"]
[Result "0-1"]
[Round "7"]
[TimeControl "180+1"]
[Date "2023.10.31"]
[WhiteClock "0:00:00"]
[BlackClock "0:00:10"]
[Board "112"]

1. e4 {[%clk 0:03:00]}  c5 {[%clk 0:02:57]} 2. Nc3 {[%clk 0:03:00]}  d6 {[%clk 0:02:50]} 3. g3 {[%clk 0:03:00]}  Nf6 {[%clk 0:02:49]} 4. Bg2 {[%clk 0:03:00]}  g6 {[%clk 0:02:49]} 5. h3 {[%clk 0:03:01]}  Bg7 {[%clk 0:02:50]} 6. Nge2 {[%clk 0:03:01]}  O-O {[%clk 0:02:50]} 7. O-O {[%clk 0:03:02]}  Nc6 {[%clk 0:02:48]} 8. d3 {[%clk 0:03:02]}  Rb8 {[%clk 0:02:43]} 9. Be3 {[%clk 0:03:02]}  Nd7 {[%clk 0:02:42]} 10. d4 {[%clk 0:03:01]}  cxd4 {[%clk 0:02:35]} 11. Nxd4 {[%clk 0:03:01]}  Nde5 {[%clk 0:02:21]} 12. b3 {[%clk 0:03:00]}  Bd7 {[%clk 0:02:07]} 13. Nd5 {[%clk 0:02:56]}  e6 {[%clk 0:02:04]} 14. Nc3 {[%clk 0:02:46]}  Qa5 {[%clk 0:02:02]} 15. Nce2 {[%clk 0:02:45]}  Nxd4 {[%clk 0:01:53]} 16. Bxd4 {[%clk 0:02:41]}  Rfd8 {[%clk 0:01:32]} 17. c4 {[%clk 0:02:27]}  b5 {[%clk 0:01:22]} 18. cxb5 {[%clk 0:02:22]}  Bxb5 {[%clk 0:01:20]} 19. Re1 {[%clk 0:01:52]}  Nd3 {[%clk 0:01:20]} 20. Rf1 {[%clk 0:01:47]}  Bxd4 {[%clk 0:01:15]} 21. Nxd4 {[%clk 0:01:47]}  e5 {[%clk 0:00:57]} 22. Nxb5 {[%clk 0:01:46]}  Qxb5 {[%clk 0:00:58]} 23. Qd2 {[%clk 0:01:42]}  a5 {[%clk 0:00:53]} 24. Rad1 {[%clk 0:01:40]}  Nc5 {[%clk 0:00:54]} 25. f4 {[%clk 0:01:31]}  Ne6 {[%clk 0:00:53]} 26. f5 {[%clk 0:01:27]}  Nd4 {[%clk 0:00:53]} 27. f6 {[%clk 0:01:27]}  Qe2 {[%clk 0:00:18]} 28. Qh6 {[%clk 0:01:18]}  Ne6 {[%clk 0:00:17]} 29. Rd2 {[%clk 0:01:16]}  Qh5 {[%clk 0:00:14]} 30. Qxh5 {[%clk 0:01:09]}  gxh5 {[%clk 0:00:15]} 31. h4 {[%clk 0:01:07]}  Nd4 {[%clk 0:00:13]} 32. Rfd1 {[%clk 0:00:58]}  a4 {[%clk 0:00:14]} 33. bxa4 {[%clk 0:00:54]}  Rb4 {[%clk 0:00:14]} 34. a5 {[%clk 0:00:50]}  Ra8 {[%clk 0:00:15]} 35. Rc1 {[%clk 0:00:42]}  h6 {[%clk 0:00:15]} 36. Rc7 {[%clk 0:00:40]}  Rxa5 {[%clk 0:00:15]} 37. Rd7 {[%clk 0:00:40]}  Ra6 {[%clk 0:00:14]} 38. Kf2 {[%clk 0:00:38]}  Rc6 {[%clk 0:00:14]} 39. Bf3 {[%clk 0:00:33]}  d5 {[%clk 0:00:10]} 40. Bxh5 {[%clk 0:00:22]}  Rxf6+ {[%clk 0:00:11]} 41. Ke3 {[%clk 0:00:12]}  dxe4 {[%clk 0:00:08]} 42. a3 {[%clk 0:00:07]}  Ra4 {[%clk 0:00:08]} 43. R7xd4 {[%clk 0:00:06]}  exd4+ {[%clk 0:00:07]} 44. Rxd4 {[%clk 0:00:06]}  Rxa3+ {[%clk 0:00:06]} 45. Kxe4 {[%clk 0:00:06]}  Rxg3 {[%clk 0:00:07]} 46. Rd8+ {[%clk 0:00:05]}  Kg7 {[%clk 0:00:07]} 47. Bd1 {[%clk 0:00:05]}  Rh3 {[%clk 0:00:08]} 48. h5 {[%clk 0:00:04]}  Rh4+ {[%clk 0:00:09]} 49. Ke3 {[%clk 0:00:02]}  Rhf4 {[%clk 0:00:09]} 50. Be2 {[%clk 0:00:02]}  R4f5 {[%clk 0:00:10]} 51. Bd1 {[%clk 0:00:00]}  Re5+ {[%clk 0:00:10]} 0-1


[Site "https://www.chess.com"]

[Event "Titled Tuesday Blitz October 31 Late 2023"]
[White "Fernandez, Maria Florencia"]
[Black "Arutla, Aditya"]
[WhiteFideId "116459"]
[BlackFideId "30961998"]
[WhiteElo "2315"]
[BlackElo "2434"]
[Result "1-0"]
[Round "7"]
[TimeControl "180+1"]
[Date "2023.10.31"]
[WhiteClock "0:01:26"]
[BlackClock "0:02:08"]
[Board "116"]

1. d4 {[%clk 0:03:00]}  d5 {[%clk 0:02:58]} 2. c4 {[%clk 0:03:01]}  c6 {[%clk 0:02:57]} 3. Nc3 {[%clk 0:03:00]}  Nf6 {[%clk 0:02:57]} 4. Nf3 {[%clk 0:03:00]}  e6 {[%clk 0:02:54]} 5. e3 {[%clk 0:02:59]}  Nbd7 {[%clk 0:02:50]} 6. Qc2 {[%clk 0:02:59]}  Bd6 {[%clk 0:02:48]} 7. b3 {[%clk 0:02:58]}  O-O {[%clk 0:02:48]} 8. Bb2 {[%clk 0:02:57]}  Re8 {[%clk 0:02:47]} 9. Be2 {[%clk 0:02:55]}  b6 {[%clk 0:02:41]} 10. O-O {[%clk 0:02:55]}  Bb7 {[%clk 0:02:37]} 11. Rfd1 {[%clk 0:02:50]}  Qe7 {[%clk 0:02:33]} 12. Rac1 {[%clk 0:02:47]}  Rac8 {[%clk 0:02:32]} 13. Bf1 {[%clk 0:02:38]}  Red8 {[%clk 0:02:31]} 14. e4 {[%clk 0:02:34]}  dxe4 {[%clk 0:02:30]} 15. Nxe4 {[%clk 0:02:35]}  Nxe4 {[%clk 0:02:30]} 16. Qxe4 {[%clk 0:02:35]}  Nf6 {[%clk 0:02:31]} 17. Qh4 {[%clk 0:02:35]}  c5 {[%clk 0:02:30]} 18. Ne5 {[%clk 0:02:03]}  cxd4 {[%clk 0:02:27]} 19. Bxd4 {[%clk 0:02:00]}  Bc5 {[%clk 0:02:26]} 20. Bb2 {[%clk 0:01:48]}  Rxd1 {[%clk 0:02:23]} 21. Rxd1 {[%clk 0:01:48]}  Rd8 {[%clk 0:02:22]} 22. Rxd8+ {[%clk 0:01:35]}  Qxd8 {[%clk 0:02:23]} 23. Ng4 {[%clk 0:01:34]}  Bd4 {[%clk 0:02:12]} 24. Bxd4 {[%clk 0:01:27]}  Qxd4 {[%clk 0:02:08]} 25. Nh6+ {[%clk 0:01:26]} 1-0


[Site "https://www.chess.com"]